bitfinex-derivatives/quotes_SOLF0:USTF0_20260306
["timestamp","ask_amount","ask_price","bid_price","bid_amount"]
[1772834602623,7.47182945,84.755,84.731,13.75475639]
[1772834602920,7.47182945,84.754,84.731,13.75475639]
[1772834603120,7.47182945,84.753,84.731,13.75475639]
[1772834603324,3.91231124,84.762,84.731,13.75475639]
[1772834603519,7.47173923,84.761,84.731,13.75475639]
[1772834603720,7.47173923,84.76,84.731,13.75475639]
[1772834603921,7.47173923,84.759,84.731,13.75475639]
[1772834604118,7.47173923,84.758,84.731,13.75475639]
[1772834604319,3.91231124,84.762,84.731,13.75475639]
[1772834604320,7.47173923,84.757,84.731,13.75475639]
[1772834604519,7.47173923,84.756,84.731,13.75475639]
[1772834604720,7.47173923,84.755,84.731,13.75475639]
[1772834604922,7.47173923,84.754,84.731,13.75475639]
[1772834605222,7.47173923,84.753,84.731,13.75475639]
[1772834605422,7.47173923,84.752,84.731,13.75475639]
[1772834605725,3.91231124,84.762,84.731,13.75475639]
[1772834605927,7.47273452,84.761,84.731,13.75475639]
[1772834606125,7.47273452,84.76,84.731,13.75475639]
[1772834606428,7.47273452,84.759,84.731,13.75475639]
[1772834606721,7.47273452,84.758,84.731,13.75475639]
[1772834606925,7.47273452,84.757,84.731,13.75475639]
[1772834607127,7.47273452,84.756,84.731,13.75475639]
[1772834607323,7.47273452,84.755,84.731,13.75475639]
[1772834607524,7.47273452,84.754,84.731,13.75475639]
[1772834607724,7.47273452,84.753,84.731,13.75475639]
[1772834607928,7.47273452,84.752,84.731,13.75475639]
[1772834608226,3.91231124,84.762,84.731,13.75475639]
[1772834608425,7.47337339,84.761,84.731,13.75475639]
[1772834608624,7.47337339,84.76,84.731,13.75475639]
[1772834608824,7.47337339,84.759,84.731,13.75475639]
[1772834609021,7.47337339,84.758,84.731,13.75475639]
[1772834609325,7.47337339,84.757,84.732,3.19449081]
[1772834609521,7.47337339,84.756,84.732,3.19449081]
[1772834609721,7.47337339,84.755,84.732,3.19449081]
[1772834609924,7.47337339,84.754,84.732,3.19449081]
[1772834610125,7.47337339,84.753,84.732,3.19449081]
[1772834610325,7.47337339,84.752,84.732,3.19449081]
[1772834610527,3.91231124,84.762,84.732,3.19449081]
[1772834610722,7.47338532,84.761,84.732,3.19449081]
[1772834610921,7.47338532,84.76,84.732,3.19449081]
[1772834611128,7.47338532,84.759,84.74,3.64347872]
[1772834611327,7.47338532,84.758,84.74,3.64347872]
[1772834611524,3.91231124,84.771,84.74,3.64347872]
[1772834611724,3.91231124,84.769,84.74,3.64347872]
[1772834611921,7.47369335,84.768,84.74,3.64347872]
[1772834612120,7.47369335,84.767,84.74,3.64347872]
[1772834612326,7.47369335,84.766,84.74,3.64347872]
[1772834612527,7.47369335,84.765,84.74,3.64347872]
[1772834612830,7.47369335,84.764,84.74,3.64347872]
[1772834613028,7.47369335,84.763,84.74,3.64347872]
[1772834613229,7.47369335,84.762,84.74,3.64347872]
[1772834613429,7.47369335,84.761,84.74,3.64347872]
[1772834613632,7.47369335,84.76,84.74,3.64347872]
[1772834613929,7.47369335,84.759,84.74,3.64347872]
[1772834614122,7.47369335,84.758,84.74,3.64347872]
[1772834614320,7.47369335,84.757,84.74,3.64347872]
[1772834614528,7.47369335,84.756,84.74,3.64347872]
[1772834614730,3.91231124,84.769,84.74,3.64347872]
[1772834614929,3.70525042,84.767,84.74,3.64347872]
[1772834615132,3.70525042,84.765,84.731,10.622]
[1772834615425,7.472116,84.764,84.731,10.622]
[1772834615631,7.472116,84.763,84.731,10.622]
[1772834615831,3.70525042,84.761,84.731,10.622]
[1772834616032,3.70525042,84.759,84.731,10.622]
[1772834616230,11.17736642,84.758,84.731,10.622]
[1772834616431,7.472116,84.757,84.731,10.622]
[1772834616629,7.472116,84.756,84.731,10.622]
[1772834616929,3.70525042,84.758,84.731,10.622]
[1772834617129,7.47182472,84.757,84.731,10.622]
[1772834617330,7.47182472,84.756,84.731,10.622]
[1772834617529,3.70525042,84.758,84.731,10.622]
[1772834617828,7.4717076,84.757,84.731,10.622]
[1772834618029,7.4717076,84.756,84.731,10.622]
[1772834618327,3.70525042,84.758,84.731,10.622]
[1772834618529,7.47203326,84.757,84.731,10.622]
[1772834618730,7.47203326,84.756,84.731,10.622]
[1772834618933,3.70525042,84.758,84.731,10.622]
[1772834619231,7.47159262,84.757,84.731,10.622]
[1772834619433,7.47159262,84.756,84.731,10.622]
[1772834619629,3.70525042,84.758,84.731,10.622]
[1772834619824,7.47241681,84.757,84.731,10.622]
[1772834620023,7.47241681,84.756,84.731,10.622]
[1772834620223,3.70525042,84.758,84.731,10.622]
[1772834620524,7.47153088,84.757,84.731,10.622]
[1772834620722,7.47153088,84.756,84.731,10.622]
[1772834620925,3.70525042,84.758,84.731,10.622]
[1772834621132,7.4715328,84.757,84.731,10.622]
[1772834621332,7.4715328,84.756,84.731,10.622]
[1772834621529,3.70525042,84.758,84.731,10.622]
[1772834621729,7.47312893,84.757,84.731,10.622]
[1772834621930,7.47312893,84.756,84.731,10.622]
[1772834622130,3.70525042,84.758,84.731,10.622]
[1772834622329,7.47353048,84.757,84.731,10.622]
[1772834622628,7.47353048,84.756,84.731,10.622]
[1772834622830,3.70525042,84.758,84.731,10.622]
[1772834623133,7.47455919,84.757,84.734,10.621]
[1772834623332,7.47455919,84.756,84.734,10.621]
[1772834623534,3.70525042,84.765,84.734,10.621]
[1772834623733,7.47407091,84.764,84.734,10.621]
[1772834623937,7.47407091,84.763,84.734,10.621]
[1772834624134,7.47407091,84.762,84.734,10.621]
[1772834624332,7.47407091,84.761,84.734,13.84790248]
[1772834624636,7.47407091,84.76,84.734,13.84790248]
[1772834624830,7.47407091,84.759,84.734,13.84790248]
[1772834625030,7.47407091,84.758,84.734,13.84790248]
[1772834625228,7.47407091,84.757,84.734,13.84790248]
[1772834625433,7.47407091,84.756,84.734,13.84790248]
[1772834625738,7.47407091,84.755,84.734,13.84790248]
[1772834625936,3.70525042,84.765,84.734,13.84790248]
[1772834626135,11.18055802,84.764,84.734,13.84790248]
[1772834626336,7.4753076,84.763,84.734,13.84790248]
[1772834626638,7.4753076,84.762,84.734,13.84790248]
[1772834626835,7.4753076,84.761,84.734,13.84790248]
[1772834627036,7.4753076,84.76,84.734,13.84790248]
[1772834627336,7.4753076,84.759,84.734,13.84790248]
[1772834627536,7.4753076,84.758,84.734,13.84790248]
[1772834627736,7.4753076,84.757,84.734,13.84790248]
[1772834627935,7.4753076,84.756,84.734,13.84790248]
[1772834628128,7.4753076,84.755,84.74,10.621]
[1772834628328,3.70525042,84.764,84.734,3.22690248]
[1772834628535,7.4830948,84.763,84.734,3.22690248]
[1772834628832,7.4830948,84.762,84.739,3.27793707]
[1772834629033,7.4830948,84.761,84.739,3.27793707]
[1772834629231,7.4830948,84.76,84.739,3.27793707]
[1772834629437,7.48310498,84.759,84.739,3.27793707]
[1772834629638,7.48310498,84.758,84.739,3.27793707]
[1772834629941,3.70525042,84.774,84.739,3.27793707]
[1772834629942,7.48310498,84.757,84.739,3.27793707]
[1772834630143,7.48310498,84.756,84.739,3.27793707]
[1772834630341,7.48310498,84.755,84.739,3.27793707]
[1772834630538,3.70525042,84.77,84.73,3.28022439]
[1772834630737,3.70525042,84.768,84.707,3.28022439]
[1772834630942,3.70525042,84.766,84.697,3.28022439]
[1772834631245,3.70525042,84.764,84.697,3.28022439]
[1772834631441,3.70525042,84.75,84.71,10.624]
[1772834631638,3.70525042,84.748,84.71,10.624]
[1772834631840,3.70525042,84.746,84.71,10.624]
[1772834632042,3.70525042,84.744,84.71,10.624]
[1772834632241,7.25744768,84.743,84.71,10.624]
[1772834632441,3.70525042,84.744,84.71,10.624]
[1772834632636,7.24862206,84.743,84.71,10.624]
[1772834632842,3.70525042,84.744,84.71,10.624]
[1772834633044,7.24862298,84.743,84.717,10.624]
[1772834633243,3.70525042,84.744,84.717,10.624]
[1772834637350,3.70525042,84.744,84.724,10.623]
[1772834641758,3.70525042,84.744,84.69,3.29120828]
[1772834642055,3.76643607,84.742,84.69,3.29120828]
[1772834642257,3.76643607,84.74,84.69,3.29120828]
[1772834642458,3.76643607,84.738,84.69,3.29120828]
[1772834642661,3.76643607,84.736,84.69,3.29120828]
[1772834642859,3.76643607,84.734,84.69,13.91820828]
[1772834643457,3.76643607,84.734,84.69,10.627]
[1772834643857,3.76643607,84.734,84.682,10.628]
[1772834644062,3.76643607,84.732,84.682,10.628]
[1772834644263,3.76643607,84.73,84.682,10.628]
[1772834646159,3.76643607,84.73,84.682,13.90445151]
[1772834646962,3.76643607,84.728,84.673,10.629]
[1772834647161,3.76643607,84.726,84.673,10.629]
[1772834647361,3.76643607,84.724,84.673,10.629]
[1772834648158,3.76643607,84.722,84.665,10.63]
[1772834648362,3.76643607,84.72,84.665,10.63]
[1772834648562,3.76643607,84.718,84.665,10.63]
[1772834648965,3.76643607,84.718,84.665,13.89313341]
[1772834649166,10.97968763,84.747,84.665,13.89313341]
[1772834649167,3.76643607,84.716,84.665,13.89313341]
[1772834649366,3.76643607,84.716,84.666,3.2573424]
[1772834650765,3.76643607,84.714,84.666,3.2573424]
[1772834652469,3.76643607,84.712,84.666,3.2573424]
[1772834654068,3.76643607,84.708,84.665,10.63]
[1772834656271,3.76643607,84.708,84.657,3.22645906]
[1772834658174,3.76643607,84.708,84.659,10.631]
[1772834659773,3.76643607,84.708,84.659,13.88117227]
[1772834660474,3.76643607,84.708,84.663,3.25017227]
[1772834661877,3.76643607,84.708,84.669,3.24263791]
[1772834662877,3.76643607,84.725,84.671,3.24263791]
[1772834663670,3.76643607,84.725,84.68,10.628]
[1772834663869,3.76643607,84.725,84.681,3.24860053]
[1772834665178,3.76643607,84.723,84.681,3.24860053]
[1772834669776,15.96203608,84.757,84.681,3.24860053]
[1772834669980,3.76643607,84.755,84.681,3.24860053]
[1772834670181,3.76643607,84.753,84.681,3.24860053]
[1772834670482,3.76643607,84.751,84.681,3.24860053]
[1772834670682,3.76643607,84.749,84.681,3.24860053]
[1772834670880,3.76643607,84.737,84.69,3.22863821]
[1772834672982,10.97968763,84.764,84.69,3.22863821]
[1772834672983,3.85282061,84.736,84.69,3.22863821]
[1772834673484,3.85282061,84.735,84.69,3.22863821]
[1772834673885,3.85282061,84.731,84.69,3.22863821]
[1772834674083,3.85282061,84.731,84.691,3.21178816]
[1772834675786,14.62597605,84.771,84.646,21.266]
[1772834675787,3.85282061,84.729,84.647,3.16403931]
[1772834675984,3.85282061,84.727,84.647,3.16403931]
[1772834676186,3.85282061,84.725,84.677,3.16403931]
[1772834676985,3.85282061,84.723,84.679,3.16403931]
[1772834678085,14.47582061,84.722,84.679,3.16403931]
[1772834679482,3.85282061,84.721,84.679,3.16403931]
[1772834681388,3.85282061,84.721,84.681,3.16512712]
[1772834683891,3.85282061,84.721,84.683,10.628]
[1772834684192,3.85282061,84.721,84.684,3.15293489]
[1772834685201,3.85282061,84.721,84.687,3.15266837]
[1772834685993,7.22961107,84.72,84.687,3.15266837]
[1772834686191,7.22961107,84.719,84.687,3.15266837]
[1772834686493,3.85282061,84.746,84.697,3.15266837]
[1772834686697,3.85282061,84.744,84.697,3.15266837]
[1772834686994,3.85282061,84.742,84.697,3.15266837]
[1772834687194,3.85282061,84.74,84.697,3.15266837]
[1772834687390,3.85282061,84.738,84.697,3.15266837]
[1772834687591,3.85282061,84.736,84.697,3.15266837]
[1772834687787,3.85282061,84.734,84.689,10.627]
[1772834688095,3.85282061,84.732,84.689,10.627]
[1772834688292,3.85282061,84.73,84.689,10.627]
[1772834688596,3.85282061,84.728,84.689,10.627]
[1772834688895,3.85282061,84.726,84.689,10.627]
[1772834689195,3.85282061,84.724,84.689,10.627]
[1772834689495,3.85282061,84.722,84.689,10.627]
[1772834691898,3.85282061,84.722,84.681,10.628]
[1772834692099,3.85282061,84.72,84.676,3.18545308]
[1772834692299,3.85282061,84.718,84.676,3.18545308]
[1772834692492,3.85282061,84.716,84.676,3.18545308]
[1772834692798,3.85282061,84.714,84.676,3.18545308]
[1772834692998,3.85282061,84.712,84.676,3.18545308]
[1772834693200,3.85282061,84.71,84.676,3.18545308]
[1772834693496,3.85282061,84.708,84.665,3.20441193]
[1772834693703,3.85282061,84.706,84.665,3.20441193]
[1772834694300,3.85282061,84.706,84.664,10.63]
[1772834694997,3.85282061,84.704,84.664,10.63]
[1772834695194,3.85282061,84.702,84.664,10.63]
[1772834695395,3.85282061,84.7,84.664,10.63]
[1772834695700,3.85282061,84.698,84.657,10.631]
[1772834696101,3.76087674,84.71,84.658,3.20423089]
[1772834696302,7.26729906,84.709,84.658,3.20423089]
[1772834696492,3.76087674,84.704,84.663,3.20423089]
[1772834696802,3.76087674,84.702,84.663,3.20423089]
[1772834697100,3.76087674,84.697,84.656,3.35212101]
[1772834697402,3.76087674,84.695,84.654,10.631]
[1772834697593,3.76087674,84.693,84.654,10.631]
[1772834697998,3.76087674,84.691,84.654,10.631]
[1772834698200,3.76087674,84.689,84.654,10.631]
[1772834698604,3.76087674,84.689,84.647,3.35212101]
[1772834700002,3.76087674,84.684,84.647,3.35212101]
[1772834700405,3.76087674,84.707,84.647,3.35212101]
[1772834700706,3.76087674,84.705,84.647,3.35212101]
[1772834701007,3.76087674,84.703,84.655,3.38197422]
[1772834701207,7.25834526,84.704,84.655,3.38197422]
[1772834701208,3.76087674,84.701,84.655,3.38197422]
[1772834701404,3.76087674,84.699,84.655,3.38197422]
[1772834702797,3.76087674,84.699,84.657,3.38677369]
[1772834704308,4.02762743,84.697,84.657,3.38677369]
[1772834704510,4.02762743,84.695,84.657,3.38677369]
[1772834704809,4.02762743,84.693,84.658,10.631]
[1772834705205,4.02762743,84.691,84.658,10.631]
[1772834706510,4.02762743,84.691,84.65,10.632]
[1772834707305,4.02762743,84.689,84.65,10.632]
[1772834707906,4.02762743,84.687,84.65,10.632]
[1772834708710,4.02762743,84.687,84.643,10.633]
[1772834709108,10.627,84.691,84.643,10.633]
[1772834709109,4.02762743,84.685,84.643,10.633]
[1772834712218,4.02762743,84.683,84.636,3.05653664]
[1772834712813,4.02762743,84.681,84.639,13.70261096]
[1772834714220,4.02762743,84.681,84.64,3.03354213]
[1772834714920,10.628,84.68,84.64,3.03354213]
[1772834715120,4.02762743,84.679,84.64,3.03354213]
[1772834716021,4.02762743,84.677,84.64,3.03354213]
[1772834717723,4.02762743,84.693,84.64,3.03354213]
[1772834718121,4.02762743,84.691,84.643,3.03211842]
[1772834719926,4.02762743,84.687,84.645,10.633]
[1772834720128,4.02762743,84.687,84.645,13.6982844]
[1772834722128,4.02762743,84.679,84.596,3.06053398]
[1772834722328,4.02762743,84.679,84.598,3.06053398]
[1772834723831,4.02762743,84.676,84.627,3.05855222]
[1772834724827,4.02762743,84.672,84.627,3.05855222]
[1772834725426,14.65662743,84.671,84.627,3.05855222]
[1772834725628,4.02762743,84.67,84.627,3.05855222]
[1772834726324,4.02762743,84.67,84.629,3.03938729]
[1772834727132,4.02762743,84.668,84.629,3.03938729]
[1772834729328,4.02762743,84.668,84.59,2.92173753]
[1772834730836,4.02762743,84.668,84.618,2.92173753]
[1772834731838,4.02762743,84.668,84.621,2.91163021]
[1772834732137,3.74672972,84.666,84.586,2.9115046]
[1772834732334,3.74672972,84.664,84.586,2.9115046]
[1772834732539,3.74672972,84.662,84.598,2.9115046]
[1772834732740,3.74672972,84.66,84.598,2.9115046]
[1772834733835,3.74672972,84.655,84.598,2.9115046]
[1772834734437,3.74672972,84.655,84.605,2.9053406]
[1772834736432,10.97968763,84.695,84.599,10.638]
[1772834736433,3.74672972,84.653,84.599,10.638]
[1772834737846,3.74672972,84.651,84.599,10.638]
[1772834739143,3.74672972,84.651,84.599,13.47322726]
[1772834739349,3.74672972,84.651,84.6,2.83522726]
[1772834741944,10.632,84.649,84.6,2.83522726]
[1772834742145,3.74672972,84.648,84.6,2.83522726]
[1772834742840,10.632,84.649,84.6,2.83522726]
[1772834742841,3.74672972,84.646,84.6,2.83522726]
[1772834743652,3.74672972,84.643,84.6,2.83522726]
[1772834744454,14.37972972,84.642,84.6,2.83522726]
[1772834744655,3.74672972,84.641,84.6,2.83522726]
[1772834745852,10.634,84.636,84.6,2.83522726]
[1772834746053,3.74672972,84.635,84.6,2.83522726]
[1772834755463,3.74672972,84.635,84.603,2.8442532]
[1772834756962,3.74672972,84.635,84.602,10.638]
[1772834759870,3.86143037,84.653,84.607,2.83573953]
[1772834760067,3.86143037,84.651,84.607,2.83573953]
[1772834760267,3.86143037,84.649,84.607,2.83573953]
[1772834760568,3.86143037,84.647,84.607,2.83573953]
[1772834760767,3.86143037,84.645,84.607,2.83573953]
[1772834760968,11.08139021,84.644,84.607,2.83573953]
[1772834761170,3.86143037,84.644,84.607,2.83573953]
[1772834763171,11.06111013,84.643,84.607,2.83573953]
[1772834763369,3.8379403,84.643,84.607,2.83573953]
[1772834765278,7.22388962,84.642,84.607,2.83573953]
[1772834765477,3.8379403,84.643,84.607,2.83573953]
[1772834765674,3.8379403,84.641,84.598,10.639]
[1772834765873,3.8379403,84.641,84.597,2.838019]
[1772834766270,3.8379403,84.639,84.597,2.838019]
[1772834766472,3.8379403,84.66,84.598,2.838019]
[1772834766679,3.8379403,84.658,84.598,2.838019]
[1772834766875,3.8379403,84.656,84.598,2.838019]
[1772834767078,3.8379403,84.654,84.598,2.838019]
[1772834767381,3.8379403,84.652,84.598,2.838019]
[1772834767680,3.8379403,84.65,84.598,2.838019]
[1772834767880,3.8379403,84.645,84.602,13.45909797]
[1772834768074,3.8379403,84.645,84.603,2.82109797]
[1772834769976,3.8379403,84.642,84.603,2.82109797]
[1772834774177,7.24293125,84.641,84.603,2.82109797]
[1772834774382,7.24293125,84.64,84.603,2.82109797]
[1772834774682,3.8379403,84.642,84.603,2.82109797]
[1772834774981,3.8379403,84.637,84.603,2.82109797]
[1772834776478,7.24675897,84.636,84.603,2.82109797]
[1772834776673,7.24675897,84.635,84.603,2.82109797]
[1772834776877,3.8379403,84.637,84.603,2.82109797]
[1772834777074,3.8379403,84.635,84.6,10.638]
[1772834777279,3.8379403,84.633,84.6,10.638]
[1772834777475,7.24278889,84.632,84.601,3.06541366]
[1772834777780,7.24278889,84.631,84.601,3.06541366]
[1772834778082,7.24278889,84.63,84.601,3.06541366]
[1772834778284,7.24278889,84.629,84.601,3.06541366]
[1772834778477,7.24278889,84.628,84.601,3.06541366]
[1772834778679,7.24278889,84.627,84.601,3.06541366]
[1772834778876,7.24278889,84.626,84.61,10.637]
[1772834779076,0.00078889,84.625,84.61,10.637]
[1772834779280,3.8379403,84.643,84.61,10.637]
[1772834779888,3.8379403,84.643,84.614,3.00039319]
[1772834780089,3.8379403,84.66,84.614,3.00039319]
[1772834780285,3.8379403,84.658,84.614,3.00039319]
[1772834780487,3.8379403,84.656,84.614,3.00039319]
[1772834780690,12.64941116,84.655,84.614,3.00039319]
[1772834780890,3.8379403,84.653,84.614,3.00039319]
[1772834781185,8.81147086,84.652,84.622,10.635]
[1772834781384,12.61259631,84.661,84.623,2.99429549]
[1772834781584,3.8379403,84.659,84.623,2.99429549]
[1772834781785,8.77465601,84.661,84.626,2.99429549]
[1772834782790,8.77465601,84.661,84.633,2.99429549]
[1772834789500,3.8379403,84.691,84.585,22.01130863]
[1772834789698,7.05820522,84.689,84.585,22.01130863]
[1772834789898,7.05820522,84.687,84.586,22.01130863]
[1772834790099,10.628,84.682,84.637,10.634]
[1772834790403,8.76857938,84.681,84.637,10.634]
[1772834790597,15.8267846,84.681,84.637,10.634]
[1772834790794,7.05820522,84.68,84.637,10.634]
[1772834791000,7.06216712,84.678,84.637,10.634]
[1772834791195,7.06216712,84.676,84.637,10.634]
[1772834791396,7.47929162,84.675,84.637,10.634]
[1772834791597,7.47929162,84.674,84.637,10.634]
[1772834791900,7.47929162,84.673,84.637,10.634]
[1772834792199,7.06216712,84.676,84.637,10.634]
[1772834792200,7.47929162,84.672,84.637,10.634]
[1772834792391,7.47929162,84.671,84.637,10.634]
[1772834792590,7.47929162,84.67,84.637,10.634]
[1772834792794,7.47929162,84.669,84.637,10.634]
[1772834792999,7.47929162,84.668,84.637,10.634]
[1772834793194,7.47929162,84.667,84.637,10.634]
[1772834793400,7.47929162,84.666,84.637,10.634]
[1772834793601,7.06216712,84.676,84.637,10.634]
[1772834793902,7.4768958,84.675,84.637,10.634]
[1772834794101,7.4768958,84.674,84.637,10.634]
[1772834794296,7.4768958,84.673,84.637,10.634]
[1772834794501,7.4768958,84.672,84.637,10.634]
[1772834794702,7.4768958,84.671,84.637,10.634]
[1772834794901,7.4768958,84.67,84.637,10.634]
[1772834795094,7.4768958,84.669,84.637,10.634]
[1772834795294,7.4768958,84.668,84.637,10.634]
[1772834795598,7.4768958,84.667,84.637,10.634]
[1772834795799,7.06216712,84.676,84.637,10.634]
[1772834796102,14.56025669,84.675,84.637,10.634]
[1772834796301,7.08584348,84.673,84.629,10.635]
[1772834796600,7.08584348,84.671,84.6,43.28830863]
[1772834796800,7.08584348,84.669,84.6,43.28830863]
[1772834796994,7.47441321,84.668,84.6,43.28830863]
[1772834797200,7.08584348,84.669,84.6,43.28830863]
[1772834797400,7.08759632,84.667,84.6,43.28830863]
[1772834797901,7.08759632,84.667,84.635,10.634]
[1772834800906,7.08759632,84.667,84.641,10.633]
[1772834801701,7.08759632,84.667,84.651,10.632]
[1772834802006,7.08272194,84.696,84.614,21.273]
[1772834802306,7.46979963,84.695,84.614,21.273]
[1772834802606,7.08272194,84.692,84.643,10.633]
[1772834802907,7.08272194,84.69,84.643,10.633]
[1772834803106,7.46979963,84.689,84.643,10.633]
[1772834803308,7.06189861,84.687,84.643,10.633]
[1772834803502,7.06189861,84.685,84.643,10.633]
[1772834803702,7.46979963,84.684,84.643,10.633]
[1772834804005,7.06189861,84.682,84.643,10.633]
[1772834804204,7.46979963,84.681,84.643,10.633]
[1772834804405,7.06189861,84.679,84.643,10.633]
[1772834804607,7.06189861,84.677,84.643,10.633]
[1772834806710,7.06189861,84.677,84.651,10.632]
[1772834810414,7.06453954,84.675,84.601,22.01130863]
[1772834812014,7.06453954,84.675,84.633,10.634]
[1772834814717,7.11132059,84.673,84.626,10.635]
[1772834816020,7.11126698,84.67,84.626,10.635]
[1772834819020,7.11126698,84.67,84.633,10.634]
[1772834821921,7.11126698,84.67,84.639,10.633]
[1772834822322,7.49608158,84.669,84.639,10.633]
[1772834822623,7.11126698,84.67,84.639,10.633]
[1772834822921,7.49632179,84.669,84.639,10.633]
[1772834823224,7.49850455,84.668,84.639,10.633]
[1772834823421,7.11126698,84.67,84.639,10.633]
[1772834823619,7.49873353,84.669,84.639,10.633]
[1772834823814,7.49873353,84.668,84.639,10.633]
[1772834824122,7.11126698,84.67,84.639,10.633]
[1772834824426,7.50136087,84.669,84.639,10.633]
[1772834824723,7.50136087,84.668,84.639,10.633]
[1772834824923,7.50136087,84.667,84.639,10.633]
[1772834825123,7.50136087,84.666,84.639,10.633]
[1772834825323,7.50136087,84.665,84.639,10.633]
[1772834825520,7.11126698,84.67,84.639,10.633]
[1772834825723,7.50438814,84.669,84.639,10.633]
[1772834825924,7.50438814,84.668,84.639,10.633]
[1772834826120,7.50438814,84.667,84.639,10.633]
[1772834826324,7.11478136,84.665,84.632,10.634]
[1772834826626,7.50438814,84.664,84.632,10.634]
[1772834826820,7.50438814,84.663,84.632,10.634]
[1772834827022,7.11478136,84.665,84.632,10.634]
[1772834827220,7.50942985,84.664,84.632,10.634]
[1772834827517,7.50942985,84.663,84.632,10.634]
[1772834827724,7.50942985,84.662,84.632,10.634]
[1772834828022,7.11478136,84.665,84.632,10.634]
[1772834828220,7.50996983,84.664,84.632,10.634]
[1772834828421,7.50996983,84.663,84.632,10.634]
[1772834828621,7.50996983,84.662,84.632,10.634]
[1772834828921,7.11478136,84.665,84.632,10.634]
[1772834829121,7.5105695,84.664,84.632,10.634]
[1772834829421,7.5105695,84.663,84.632,10.634]
[1772834829620,7.5105695,84.662,84.632,10.634]
[1772834829824,7.11478136,84.665,84.632,10.634]
[1772834830018,7.51123764,84.664,84.632,10.634]
[1772834830218,7.51123764,84.663,84.632,10.634]
[1772834830521,7.51123764,84.662,84.632,10.634]
[1772834830720,7.51123764,84.661,84.632,10.634]
[1772834830922,7.11478136,84.665,84.632,10.634]
[1772834831117,7.51198503,84.664,84.632,10.634]
[1772834831321,7.51198503,84.663,84.632,10.634]
[1772834831620,7.51198503,84.662,84.632,10.634]
[1772834831822,7.51198503,84.661,84.632,10.634]
[1772834832024,7.11478136,84.665,84.632,10.634]
[1772834832224,7.51282654,84.664,84.632,10.634]
[1772834832423,7.51282654,84.663,84.632,10.634]
[1772834832728,7.51282654,84.662,84.638,10.634]
[1772834832924,7.51282654,84.661,84.638,10.634]
[1772834833222,7.51477878,84.66,84.638,10.634]
[1772834833421,7.11478136,84.665,84.638,10.634]
[1772834833623,7.5148906,84.664,84.638,10.634]
[1772834833925,7.5148906,84.663,84.638,10.634]
[1772834834226,7.5148906,84.662,84.638,10.634]
[1772834834425,7.5148906,84.661,84.638,10.634]
[1772834834628,7.5148906,84.66,84.638,10.634]
[1772834834824,7.5148906,84.659,84.638,10.634]
[1772834835126,7.11478136,84.665,84.638,10.634]
[1772834835426,7.51704746,84.664,84.616,22.01130863]
[1772834835618,7.10143262,84.68,84.621,22.01130863]
[1772834836523,7.10143262,84.678,84.615,22.01130863]
[1772834836723,7.10143262,84.676,84.615,22.01130863]
[1772834836926,7.10143262,84.674,84.615,22.01130863]
[1772834837327,7.10143262,84.674,84.625,10.635]
[1772834841431,7.10143262,84.674,84.631,10.634]
[1772834846335,7.10143262,84.674,84.637,10.634]
[1772834846534,7.05635988,84.672,84.637,10.634]
[1772834846832,7.05635988,84.67,84.637,10.634]
[1772834847033,15.86418227,84.669,84.637,10.634]
[1772834847228,7.05636326,84.669,84.637,10.634]
[1772834847534,7.42907878,84.668,84.637,10.634]
[1772834847736,7.42907878,84.667,84.637,10.634]
[1772834847935,7.42907878,84.666,84.637,10.634]
[1772834848136,7.42907878,84.665,84.637,10.634]
[1772834848338,7.42907878,84.664,84.637,10.634]
[1772834848537,7.42907878,84.663,84.637,10.634]
[1772834848733,7.42907878,84.662,84.637,10.634]
[1772834848935,7.42907878,84.661,84.637,10.634]
[1772834849136,7.42907878,84.66,84.637,10.634]
[1772834849334,7.42907878,84.659,84.637,10.634]
[1772834849539,7.42907878,84.658,84.637,10.634]
[1772834849738,7.42907878,84.657,84.64,3.6521107]
[1772834849939,7.05636326,84.669,84.64,3.6521107]
[1772834850234,7.42898484,84.668,84.64,3.6521107]
[1772834850434,7.42898484,84.667,84.64,3.6521107]
[1772834850640,7.42898484,84.666,84.64,3.6521107]
[1772834850837,7.42898484,84.665,84.64,3.6521107]
[1772834851045,7.42898484,84.664,84.64,3.6521107]
[1772834851235,7.42898484,84.663,84.64,3.6521107]
[1772834851435,7.42898484,84.662,84.64,3.6521107]